[Event "*** SCC Grand Prix: Titled Tuesday Blitz"]
[Site "Chess.com"]
[Date "2020.07.07"]
[Round "3"]
[White "ViktoriyaTarasova"]
[Black "MathiasWomacka"]
[Result "1-0"]
[WhiteElo "2253"]
[BlackElo "2427"]
[TimeControl "180+1"]
[EndTime "10:32:29 PDT"]
[Termination "ViktoriyaTarasova won on time"]

1. d4 {[%clk 0:03:00.9]} 1... Nf6 {[%clk 0:02:58.1]} 2. c4 {[%clk 0:03:00.1]}
2... e6 {[%clk 0:02:58.1]} 3. Nc3 {[%clk 0:02:57.8]} 3... Bb4 {[%clk 0:02:57.6]}
4. Nf3 {[%clk 0:02:57.4]} 4... c5 {[%clk 0:02:56.9]} 5. g3 {[%clk 0:02:54.4]}
5... cxd4 {[%clk 0:02:56.6]} 6. Nxd4 {[%clk 0:02:51]} 6... O-O {[%clk
0:02:57.1]} 7. Bg2 {[%clk 0:02:50.2]} 7... d5 {[%clk 0:02:55.2]} 8. cxd5 {[%clk
0:02:49.9]} 8... Nxd5 {[%clk 0:02:54.9]} 9. Qb3 {[%clk 0:02:50.5]} 9... Bc5
{[%clk 0:02:51.5]} 10. Nf3 {[%clk 0:02:26.6]} 10... Nc6 {[%clk 0:02:47.2]} 11.
O-O {[%clk 0:02:22.9]} 11... Nxc3 {[%clk 0:02:37]} 12. Qxc3 {[%clk 0:02:19.7]}
12... Be7 {[%clk 0:02:36.5]} 13. Bf4 {[%clk 0:02:16.4]} 13... Qb6 {[%clk
0:02:34.7]} 14. a3 {[%clk 0:02:11]} 14... Bf6 {[%clk 0:02:31.2]} 15. Be5 {[%clk
0:01:23.6]} 15... Nxe5 {[%clk 0:02:25.2]} 16. Nxe5 {[%clk 0:01:23.4]} 16... Qb5
{[%clk 0:02:12]} 17. f4 {[%clk 0:01:18.4]} 17... Qxe2 {[%clk 0:01:52.2]} 18.
Rfe1 {[%clk 0:01:08.1]} 18... Qa6 {[%clk 0:01:44.8]} 19. Rac1 {[%clk 0:01:08.5]}
19... Qb6+ {[%clk 0:01:35.1]} 20. Kh1 {[%clk 0:01:07]} 20... a5 {[%clk
0:01:34.8]} 21. Qe3 {[%clk 0:00:50.4]} 21... Qxe3 {[%clk 0:00:51.2]} 22. Rxe3
{[%clk 0:00:49.2]} 22... Rb8 {[%clk 0:00:51.6]} 23. Rc7 {[%clk 0:00:42]} 23...
b5 {[%clk 0:00:51.1]} 24. g4 {[%clk 0:00:28.2]} 24... g5 {[%clk 0:00:48]} 25.
fxg5 {[%clk 0:00:24.1]} 25... Bxg5 {[%clk 0:00:48.9]} 26. Re2 {[%clk 0:00:24.4]}
26... Bf6 {[%clk 0:00:45.8]} 27. Nc6 {[%clk 0:00:22.2]} 27... Rb6 {[%clk
0:00:44.4]} 28. Nxa5 {[%clk 0:00:20.9]} 28... b4 {[%clk 0:00:35.5]} 29. a4
{[%clk 0:00:20.2]} 29... Ba6 {[%clk 0:00:34.4]} 30. Rec2 {[%clk 0:00:17.1]}
30... b3 {[%clk 0:00:32.8]} 31. Rf2 {[%clk 0:00:15.8]} 31... Be5 {[%clk
0:00:31.2]} 32. Rc1 {[%clk 0:00:14.7]} 32... Rb4 {[%clk 0:00:29.4]} 33. Nc6
{[%clk 0:00:14.1]} 33... Bd4 {[%clk 0:00:24.3]} 34. Nxb4 {[%clk 0:00:12.2]}
34... Bxf2 {[%clk 0:00:23.5]} 35. Nxa6 {[%clk 0:00:12.3]} 35... Rd8 {[%clk
0:00:23.5]} 36. h3 {[%clk 0:00:10.9]} 36... Rd2 {[%clk 0:00:23.2]} 37. Rb1
{[%clk 0:00:11.5]} 37... Bd4 {[%clk 0:00:22.3]} 38. Bf1 {[%clk 0:00:11.1]} 38...
Bxb2 {[%clk 0:00:19.5]} 39. Bc4 {[%clk 0:00:11.1]} 39... Be5 {[%clk 0:00:20]}
40. Bxb3 {[%clk 0:00:11.5]} 40... Rh2+ {[%clk 0:00:18.9]} 41. Kg1 {[%clk
0:00:12]} 41... Rxh3 {[%clk 0:00:19.8]} 42. a5 {[%clk 0:00:12.1]} 42... Rc3
{[%clk 0:00:18.6]} 43. Kg2 {[%clk 0:00:12]} 43... Rd3 {[%clk 0:00:14.7]} 44. Nb4
{[%clk 0:00:11.9]} 44... Rd2+ {[%clk 0:00:14.1]} 45. Kf3 {[%clk 0:00:12.2]}
45... Bd4 {[%clk 0:00:13.5]} 46. Ke4 {[%clk 0:00:12]} 46... Ba7 {[%clk
0:00:13.8]} 47. Nc6 {[%clk 0:00:11.8]} 47... Bc5 {[%clk 0:00:12.2]} 48. a6
{[%clk 0:00:12]} 48... Kg7 {[%clk 0:00:10.3]} 49. a7 {[%clk 0:00:12.2]} 49...
Bxa7 {[%clk 0:00:10.1]} 50. Nxa7 {[%clk 0:00:12.6]} 50... Rf2 {[%clk 0:00:09.5]}
51. Nc6 {[%clk 0:00:11.5]} 51... Kg6 {[%clk 0:00:09.3]} 52. Ne5+ {[%clk
0:00:11]} 52... Kg5 {[%clk 0:00:09.5]} 53. Rh1 {[%clk 0:00:11.4]} 53... f5+
{[%clk 0:00:06.9]} 54. gxf5 {[%clk 0:00:11.6]} 54... exf5+ {[%clk 0:00:07.7]}
55. Kd3 {[%clk 0:00:11.1]} 55... Kf4 {[%clk 0:00:06.7]} 56. Nc4 {[%clk
0:00:10.5]} 56... Rf3+ {[%clk 0:00:06.7]} 57. Kc2 {[%clk 0:00:11.1]} 57... Kg3
{[%clk 0:00:06.2]} 58. Nd2 {[%clk 0:00:11.2]} 58... Rf2 {[%clk 0:00:07.1]} 59.
Rg1+ {[%clk 0:00:11.1]} 59... Kf4 {[%clk 0:00:06.2]} 60. Rg7 {[%clk 0:00:11.4]}
60... h5 {[%clk 0:00:05.9]} 61. Rh7 {[%clk 0:00:11.3]} 61... Kg5 {[%clk
0:00:04.7]} 62. Kd3 {[%clk 0:00:11.7]} 62... h4 {[%clk 0:00:04.7]} 63. Bd5
{[%clk 0:00:11.4]} 63... Rg2 {[%clk 0:00:05.2]} 64. Bxg2 {[%clk 0:00:10.6]}
64... Kg4 {[%clk 0:00:05.8]} 65. Nf3 {[%clk 0:00:10.8]} 65... f4 {[%clk
0:00:05.2]} 66. Rxh4+ {[%clk 0:00:10.9]} 66... Kg3 {[%clk 0:00:05.6]} 67. Rg4+
{[%clk 0:00:07.5]} 67... Kxg4 {[%clk 0:00:04.6]} 68. Ke2 {[%clk 0:00:07.8]}
68... Kf5 {[%clk 0:00:04.3]} 69. Kf2 {[%clk 0:00:08]} 69... Ke6 {[%clk
0:00:05.2]} 70. Bf1 {[%clk 0:00:07.7]} 70... Kd6 {[%clk 0:00:06.1]} 71. Kg2
{[%clk 0:00:08.2]} 71... Ke6 {[%clk 0:00:06.9]} 72. Kh3 {[%clk 0:00:08.8]} 72...
Kd6 {[%clk 0:00:07.8]} 73. Kg4 {[%clk 0:00:09.3]} 73... Ke6 {[%clk 0:00:08.7]}
74. Kxf4 {[%clk 0:00:09.9]} 74... Kd5 {[%clk 0:00:09.6]} 75. Bh3 {[%clk
0:00:10.2]} 75... Kd6 {[%clk 0:00:08.6]} 76. Bf5 {[%clk 0:00:09.5]} 76... Kd5
{[%clk 0:00:08.4]} 77. Be4+ {[%clk 0:00:08.6]} 77... Kd6 {[%clk 0:00:08.5]} 78.
Ne5 {[%clk 0:00:08.8]} 78... Ke6 {[%clk 0:00:08.2]} 79. Bf5+ {[%clk 0:00:09.1]}
79... Kd6 {[%clk 0:00:07.8]} 80. Nf7+ {[%clk 0:00:09.6]} 80... Kc5 {[%clk
0:00:08.7]} 81. Ke4 {[%clk 0:00:09.8]} 81... Kc4 {[%clk 0:00:07.8]} 82. Be6+
{[%clk 0:00:09.6]} 82... Kc3 {[%clk 0:00:06]} 83. Ne5 {[%clk 0:00:10.1]} 83...
Kc2 {[%clk 0:00:05.7]} 84. Bg4 {[%clk 0:00:10.5]} 84... Kc3 {[%clk 0:00:05.8]}
85. Nf3 {[%clk 0:00:10.9]} 85... Kc2 {[%clk 0:00:06]} 86. Ke3 {[%clk 0:00:11.1]}
86... Kc3 {[%clk 0:00:06.1]} 87. Bf5 {[%clk 0:00:11.3]} 87... Kc4 {[%clk
0:00:05.9]} 88. Bd3+ {[%clk 0:00:10.9]} 88... Kc3 {[%clk 0:00:05.9]} 89. Nd4
{[%clk 0:00:10]} 89... Kb4 {[%clk 0:00:05.5]} 90. Kd2 {[%clk 0:00:10.3]} 90...
Ka3 {[%clk 0:00:05.5]} 91. Kc3 {[%clk 0:00:10.6]} 91... Ka2 {[%clk 0:00:05.8]}
92. Bc2 {[%clk 0:00:07.2]} 92... Ka1 {[%clk 0:00:05.8]} 93. Nb3+ {[%clk
0:00:06.5]} 93... Ka2 {[%clk 0:00:06]} 94. Nc1+ {[%clk 0:00:06.8]} 94... Ka1
{[%clk 0:00:05.5]} 95. Ne2 {[%clk 0:00:05]} 95... Ka2 {[%clk 0:00:05.4]} 96. Nd4
{[%clk 0:00:05.4]} 96... Ka1 {[%clk 0:00:04.8]} 97. Bb3 {[%clk 0:00:05.6]} 97...
Kb1 {[%clk 0:00:04.6]} 98. Nc2 {[%clk 0:00:06.1]} 98... Kc1 {[%clk 0:00:03.9]}
99. Bc4 {[%clk 0:00:05.8]} 99... Kb1 {[%clk 0:00:03.9]} 100. Kb3 {[%clk
0:00:05.7]} 100... Kc1 {[%clk 0:00:03.6]} 101. Bd3 {[%clk 0:00:05.9]} 101... Kb1
{[%clk 0:00:03.7]} 102. Be4 {[%clk 0:00:05.9]} 102... Kc1 {[%clk 0:00:03.4]}
103. Na3 {[%clk 0:00:06.4]} 103... Kd2 {[%clk 0:00:03]} 104. Kc4 {[%clk
0:00:06.7]} 104... Ke3 {[%clk 0:00:02.9]} 105. Kd5 {[%clk 0:00:06.9]} 105... Kd2
{[%clk 0:00:01.7]} 106. Kd4 {[%clk 0:00:07]} 106... Kc1 {[%clk 0:00:01.5]} 107.
Nc4 {[%clk 0:00:07.1]} 1-0

[Event "*** SCC Grand Prix: Titled Tuesday Blitz"]
[Site "Chess.com"]
[Date "2020.07.07"]
[Round "4"]
[White "HarryCun"]
[Black "ClassyEl"]
[Result "0-1"]
[WhiteElo "2190"]
[BlackElo "2464"]
[TimeControl "180+1"]
[EndTime "10:34:04 PDT"]
[Termination "ClassyEl won by resignation"]

1. Nf3 {[%clk 0:03:00.9]} 1... d5 {[%clk 0:02:59.7]} 2. g3 {[%clk 0:02:58.4]}
2... Nf6 {[%clk 0:02:59.8]} 3. Bg2 {[%clk 0:02:58.1]} 3... c6 {[%clk 0:03:00.5]}
4. O-O {[%clk 0:02:58.4]} 4... Bg4 {[%clk 0:02:59.9]} 5. d3 {[%clk 0:02:57.9]}
5... Nbd7 {[%clk 0:02:59]} 6. Nbd2 {[%clk 0:02:57.7]} 6... e5 {[%clk 0:02:57.9]}
7. h3 {[%clk 0:02:57.9]} 7... Bh5 {[%clk 0:02:57.3]} 8. g4 {[%clk 0:02:57.7]}
8... Bg6 {[%clk 0:02:55.4]} 9. e4 {[%clk 0:02:57.6]} 9... dxe4 {[%clk
0:02:54.4]} 10. dxe4 {[%clk 0:02:58.5]} 10... Bc5 {[%clk 0:02:54.6]} 11. Nc4
{[%clk 0:02:54.6]} 11... Qc7 {[%clk 0:02:53.7]} 12. Be3 {[%clk 0:02:47.6]} 12...
Bxe3 {[%clk 0:02:45.8]} 13. Nd6+ {[%clk 0:02:46.7]} 13... Ke7 {[%clk 0:02:40.7]}
14. fxe3 {[%clk 0:02:45.3]} 14... Qxd6 {[%clk 0:02:39.7]} 15. Qxd6+ {[%clk
0:02:44.4]} 15... Kxd6 {[%clk 0:02:40.1]} 0-1

[Event "*** SCC Grand Prix: Titled Tuesday Blitz"]
[Site "Chess.com"]
[Date "2020.07.07"]
[Round "4"]
[White "queen_iryna"]
[Black "Joseacorrea"]
[Result "1-0"]
[WhiteElo "2257"]
[BlackElo "1908"]
[TimeControl "180+1"]
[EndTime "10:34:44 PDT"]
[Termination "queen_iryna won by checkmate"]

1. d4 {[%clk 0:03:00.9]} 1... e6 {[%clk 0:02:58.3]} 2. Nc3 {[%clk 0:02:59.8]}
2... f5 {[%clk 0:02:58.3]} 3. e4 {[%clk 0:02:56.1]} 3... fxe4 {[%clk 0:02:57.2]}
4. Nxe4 {[%clk 0:02:57]} 4... Nf6 {[%clk 0:02:57.5]} 5. Bg5 {[%clk 0:02:56.9]}
5... Be7 {[%clk 0:02:57.7]} 6. Bxf6 {[%clk 0:02:56.9]} 6... Bxf6 {[%clk
0:02:57.7]} 7. Nf3 {[%clk 0:02:56.8]} 7... O-O {[%clk 0:02:57.7]} 8. Bd3 {[%clk
0:02:56]} 8... b6 {[%clk 0:02:57.7]} 9. c3 {[%clk 0:02:55.8]} 9... Bb7 {[%clk
0:02:57.9]} 10. Qc2 {[%clk 0:02:55.7]} 10... h6 {[%clk 0:02:56.8]} 11. h4 {[%clk
0:02:55.1]} 11... d6 {[%clk 0:02:46.2]} 12. Neg5 {[%clk 0:02:50.6]} 12... Qe7
{[%clk 0:02:37.2]} 13. Bh7+ {[%clk 0:02:48.8]} 13... Kh8 {[%clk 0:02:36.2]} 14.
Bg8 {[%clk 0:02:18.3]} 14... Bxg5 {[%clk 0:02:23.8]} 15. Qh7# {[%clk 0:02:17.5]}
1-0

[Event "*** SCC Grand Prix: Titled Tuesday Blitz"]
[Site "Chess.com"]
[Date "2020.07.07"]
[Round "4"]
[White "mamey78"]
[Black "ChessQueen"]
[Result "1-0"]
[WhiteElo "2455"]
[BlackElo "2652"]
[TimeControl "180+1"]
[EndTime "10:35:04 PDT"]
[Termination "mamey78 won by resignation"]

1. e4 {[%clk 0:03:00]} 1... c6 {[%clk 0:02:59.6]} 2. d4 {[%clk 0:02:58.9]} 2...
d5 {[%clk 0:03:00.3]} 3. exd5 {[%clk 0:02:59.8]} 3... cxd5 {[%clk 0:03:00.6]} 4.
c4 {[%clk 0:02:59.4]} 4... Nf6 {[%clk 0:03:00.6]} 5. Nc3 {[%clk 0:02:59.4]} 5...
Nc6 {[%clk 0:03:00]} 6. Nf3 {[%clk 0:02:58.3]} 6... a6 {[%clk 0:03:00.3]} 7.
cxd5 {[%clk 0:02:41]} 7... Nxd5 {[%clk 0:02:59.6]} 8. Bc4 {[%clk 0:02:40.9]}
8... Be6 {[%clk 0:02:50.8]} 9. Bb3 {[%clk 0:02:40.4]} 9... Nxc3 {[%clk
0:02:38.9]} 10. bxc3 {[%clk 0:02:39.4]} 10... Qc8 {[%clk 0:02:30.5]} 11. O-O
{[%clk 0:02:33.9]} 11... Bxb3 {[%clk 0:02:28.4]} 12. axb3 {[%clk 0:02:24.8]}
12... e6 {[%clk 0:02:26.7]} 13. d5 {[%clk 0:02:22.7]} 13... exd5 {[%clk
0:02:25.5]} 14. Re1+ {[%clk 0:02:22.6]} 14... Be7 {[%clk 0:02:24.8]} 15. Ba3
{[%clk 0:02:22.5]} 15... O-O {[%clk 0:02:23.2]} 16. Bxe7 {[%clk 0:02:20.9]} 1-0

[Event "*** SCC Grand Prix: Titled Tuesday Blitz"]
[Site "Chess.com"]
[Date "2020.07.07"]
[Round "4"]
[White "dawtonlms"]
[Black "FMKonstantin_Twitch"]
[Result "0-1"]
[WhiteElo "2377"]
[BlackElo "2562"]
[TimeControl "180+1"]
[EndTime "10:35:17 PDT"]
[Termination "FMKonstantin_Twitch won by resignation"]

1. e4 {[%clk 0:03:00.9]} 1... d5 {[%clk 0:02:57.9]} 2. exd5 {[%clk 0:03:00.5]}
2... Qxd5 {[%clk 0:02:58.8]} 3. Nc3 {[%clk 0:03:00.3]} 3... Qe6+ {[%clk
0:02:59.3]} 4. Be2 {[%clk 0:02:59.3]} 4... Qg6 {[%clk 0:02:59.2]} 5. Bf3 {[%clk
0:02:58.6]} 5... Nc6 {[%clk 0:02:58.4]} 6. Nge2 {[%clk 0:02:54.2]} 6... Bf5
{[%clk 0:02:57.7]} 7. d3 {[%clk 0:02:53.3]} 7... O-O-O {[%clk 0:02:56.3]} 8. Nf4
{[%clk 0:02:52.7]} 8... Qd6 {[%clk 0:02:54.6]} 9. O-O {[%clk 0:02:47.2]} 9... e5
{[%clk 0:02:50]} 10. Nfd5 {[%clk 0:02:43.5]} 10... Nd4 {[%clk 0:02:48.9]} 11.
Be4 {[%clk 0:02:42.5]} 11... Be6 {[%clk 0:02:45.2]} 12. f4 {[%clk 0:01:49.3]}
12... f5 {[%clk 0:02:28.7]} 13. Bf3 {[%clk 0:01:43]} 13... Nxf3+ {[%clk
0:02:27]} 14. Qxf3 {[%clk 0:01:40.3]} 0-1

[Event "*** SCC Grand Prix: Titled Tuesday Blitz"]
[Site "Chess.com"]
[Date "2020.07.07"]
[Round "4"]
[White "chargemax23"]
[Black "Eltaj_Safarli"]
[Result "0-1"]
[WhiteElo "2685"]
[BlackElo "2925"]
[TimeControl "180+1"]
[EndTime "10:35:25 PDT"]
[Termination "Eltaj_Safarli won by resignation"]

1. c4 {[%clk 0:03:00.9]} 1... Nf6 {[%clk 0:02:59.6]} 2. Nc3 {[%clk 0:03:00.5]}
2... g6 {[%clk 0:03:00.5]} 3. g3 {[%clk 0:03:00.1]} 3... Bg7 {[%clk 0:03:01.4]}
4. Bg2 {[%clk 0:03:00.6]} 4... O-O {[%clk 0:03:01.1]} 5. Nf3 {[%clk 0:03:00.8]}
5... d5 {[%clk 0:03:00]} 6. cxd5 {[%clk 0:02:59.4]} 6... Nxd5 {[%clk 0:03:00.9]}
7. O-O {[%clk 0:02:59.6]} 7... Nb6 {[%clk 0:03:00.7]} 8. d3 {[%clk 0:02:57.4]}
8... Nc6 {[%clk 0:03:00.1]} 9. Be3 {[%clk 0:02:53.7]} 9... e5 {[%clk 0:02:58.8]}
10. Rc1 {[%clk 0:02:52.8]} 10... Nd4 {[%clk 0:02:58]} 11. Nd2 {[%clk 0:02:49.4]}
11... c6 {[%clk 0:02:56.3]} 12. Nb3 {[%clk 0:02:30]} 12... Re8 {[%clk
0:02:55.6]} 13. Ne4 {[%clk 0:02:25.5]} 13... Bg4 {[%clk 0:02:55.4]} 14. Re1
{[%clk 0:02:21.9]} 14... Nd5 {[%clk 0:02:55.4]} 15. Bd2 {[%clk 0:02:15.6]} 15...
Qe7 {[%clk 0:02:50]} 16. h3 {[%clk 0:02:10.4]} 16... Bf5 {[%clk 0:02:50.2]} 17.
a3 {[%clk 0:01:58.3]} 17... h6 {[%clk 0:02:49.3]} 18. Na5 {[%clk 0:01:54.5]}
18... Rad8 {[%clk 0:02:47.2]} 19. b4 {[%clk 0:01:53.7]} 19... Bc8 {[%clk
0:02:32.5]} 20. Qb3 {[%clk 0:01:50.1]} 20... Nxb3 {[%clk 0:02:32.1]} 0-1

[Event "*** SCC Grand Prix: Titled Tuesday Blitz"]
[Site "Chess.com"]
[Date "2020.07.07"]
[Round "4"]
[White "OhanyanEminChess"]
[Black "ZverevLev"]
[Result "1-0"]
[WhiteElo "2522"]
[BlackElo "2346"]
[TimeControl "180+1"]
[EndTime "10:35:28 PDT"]
[Termination "OhanyanEminChess won by resignation"]

1. e4 {[%clk 0:03:00.9]} 1... c5 {[%clk 0:02:52.5]} 2. Nf3 {[%clk 0:02:59.5]}
2... d6 {[%clk 0:02:51.7]} 3. Nc3 {[%clk 0:02:59.1]} 3... a6 {[%clk 0:02:49.1]}
4. d4 {[%clk 0:02:58.8]} 4... cxd4 {[%clk 0:02:48.9]} 5. Nxd4 {[%clk 0:02:59.7]}
5... Nf6 {[%clk 0:02:48.6]} 6. Bc4 {[%clk 0:02:59.9]} 6... e6 {[%clk 0:02:45.5]}
7. Bb3 {[%clk 0:02:59.5]} 7... Be7 {[%clk 0:02:44]} 8. f4 {[%clk 0:02:58.5]}
8... b5 {[%clk 0:02:43.3]} 9. f5 {[%clk 0:02:56.3]} 9... e5 {[%clk 0:02:38.5]}
10. Nde2 {[%clk 0:02:56]} 10... Bb7 {[%clk 0:02:33.6]} 11. O-O {[%clk
0:02:49.4]} 11... Nxe4 {[%clk 0:02:30.9]} 12. Nxe4 {[%clk 0:02:46.9]} 12... Bxe4
{[%clk 0:02:29]} 13. Ng3 {[%clk 0:02:47.4]} 13... Bb7 {[%clk 0:02:28.2]} 14. Qg4
{[%clk 0:02:46.6]} 14... Bf6 {[%clk 0:02:23.8]} 15. Nh5 {[%clk 0:02:44.5]} 15...
Rg8 {[%clk 0:02:21.7]} 16. Nxf6+ {[%clk 0:02:41.9]} 16... Qxf6 {[%clk 0:02:21]}
17. Bg5 {[%clk 0:02:38.8]} 17... Kf8 {[%clk 0:02:12.1]} 18. Qh4 {[%clk 0:02:25]}
18... d5 {[%clk 0:01:56.8]} 19. Bxf6 {[%clk 0:02:24.2]} 19... Rh8 {[%clk
0:01:57.6]} 20. Be7+ {[%clk 0:02:23.6]} 1-0

[Event "*** SCC Grand Prix: Titled Tuesday Blitz"]
[Site "Chess.com"]
[Date "2020.07.07"]
[Round "4"]
[White "Gahan-MG"]
[Black "GuuBol"]
[Result "1-0"]
[WhiteElo "2498"]
[BlackElo "2263"]
[TimeControl "180+1"]
[EndTime "10:36:04 PDT"]
[Termination "Gahan-MG won by resignation"]

1. e4 {[%clk 0:03:00.9]} 1... c5 {[%clk 0:02:59.7]} 2. Nf3 {[%clk 0:02:59.4]}
2... d6 {[%clk 0:02:58.9]} 3. d4 {[%clk 0:02:59.2]} 3... cxd4 {[%clk 0:02:59.6]}
4. Qxd4 {[%clk 0:02:59.1]} 4... Nf6 {[%clk 0:02:57.4]} 5. c4 {[%clk 0:02:56.1]}
5... Nc6 {[%clk 0:02:51.2]} 6. Qd3 {[%clk 0:02:56.3]} 6... g6 {[%clk 0:02:50.9]}
7. Nc3 {[%clk 0:02:56]} 7... Bg7 {[%clk 0:02:51]} 8. Bg5 {[%clk 0:02:55.8]} 8...
O-O {[%clk 0:02:51]} 9. Be2 {[%clk 0:02:55.5]} 9... b6 {[%clk 0:02:50.5]} 10.
O-O {[%clk 0:02:55]} 10... h6 {[%clk 0:02:49.3]} 11. Bf4 {[%clk 0:02:50.9]}
11... Ng4 {[%clk 0:02:31.9]} 12. Qd2 {[%clk 0:02:40.1]} 12... Kh7 {[%clk
0:02:29.5]} 13. Rac1 {[%clk 0:02:33.7]} 13... Be6 {[%clk 0:02:28.1]} 14. Nd5
{[%clk 0:02:31.5]} 14... Rc8 {[%clk 0:02:24.2]} 15. h3 {[%clk 0:02:22.2]} 15...
Nge5 {[%clk 0:02:22.6]} 16. Nxe5 {[%clk 0:02:22.5]} 16... Nxe5 {[%clk
0:02:21.9]} 17. Be3 {[%clk 0:02:21.5]} 17... Bxd5 {[%clk 0:02:16.9]} 18. cxd5
{[%clk 0:02:19.1]} 18... f5 {[%clk 0:02:10.7]} 19. f4 {[%clk 0:02:14.9]} 19...
Nd7 {[%clk 0:02:10.3]} 20. exf5 {[%clk 0:02:14.2]} 20... Rxf5 {[%clk 0:02:06]}
21. Bd3 {[%clk 0:02:12.5]} 21... Rf8 {[%clk 0:02:04.5]} 22. f5 {[%clk
0:02:12.6]} 22... Ne5 {[%clk 0:02:00.3]} 23. fxg6+ {[%clk 0:02:12.4]} 23... Nxg6
{[%clk 0:01:52.5]} 24. Bxg6+ {[%clk 0:02:06.1]} 24... Kxg6 {[%clk 0:01:50.8]}
25. Qd3+ {[%clk 0:02:05.9]} 1-0

[Event "*** SCC Grand Prix: Titled Tuesday Blitz"]
[Site "Chess.com"]
[Date "2020.07.07"]
[Round "4"]
[White "Flawless_Fighter"]
[Black "Unknown_IM"]
[Result "1-0"]
[WhiteElo "2573"]
[BlackElo "2343"]
[TimeControl "180+1"]
[EndTime "10:36:04 PDT"]
[Termination "Flawless_Fighter won by resignation"]

1. e4 {[%clk 0:03:00.9]} 1... c5 {[%clk 0:02:58.6]} 2. Nf3 {[%clk 0:03:00.9]}
2... e6 {[%clk 0:02:58.2]} 3. g3 {[%clk 0:03:00.3]} 3... Nc6 {[%clk 0:02:57.5]}
4. Bg2 {[%clk 0:02:59.6]} 4... Nf6 {[%clk 0:02:57]} 5. Qe2 {[%clk 0:02:59]} 5...
d5 {[%clk 0:02:57.2]} 6. exd5 {[%clk 0:02:58.8]} 6... Nxd5 {[%clk 0:02:56]} 7.
O-O {[%clk 0:02:59.5]} 7... Be7 {[%clk 0:02:56]} 8. Rd1 {[%clk 0:02:59.6]} 8...
O-O {[%clk 0:02:56]} 9. d4 {[%clk 0:02:58.8]} 9... Qc7 {[%clk 0:02:53.7]} 10.
dxc5 {[%clk 0:02:50.9]} 10... Bxc5 {[%clk 0:02:46.5]} 11. c4 {[%clk 0:02:50.9]}
11... Nf6 {[%clk 0:02:38.7]} 12. Nc3 {[%clk 0:02:50.5]} 12... a6 {[%clk
0:02:37.3]} 13. a3 {[%clk 0:02:50.2]} 13... Rd8 {[%clk 0:02:30.1]} 14. Bg5
{[%clk 0:02:48.6]} 14... Nd4 {[%clk 0:02:19.3]} 15. Nxd4 {[%clk 0:02:39.5]}
15... Bxd4 {[%clk 0:02:20.2]} 16. Ne4 {[%clk 0:02:40.2]} 16... Qe7 {[%clk
0:02:13]} 17. c5 {[%clk 0:02:23.2]} 17... h6 {[%clk 0:02:11.1]} 18. Bxf6 {[%clk
0:02:14.6]} 18... Bxf6 {[%clk 0:02:11.6]} 19. Rxd8+ {[%clk 0:02:12.6]} 19...
Qxd8 {[%clk 0:02:11]} 20. Rd1 {[%clk 0:02:13.2]} 20... Qe7 {[%clk 0:02:11.3]}
21. Nxf6+ {[%clk 0:02:07.4]} 21... Qxf6 {[%clk 0:02:09.9]} 22. Rd6 {[%clk
0:02:03.2]} 22... Rb8 {[%clk 0:01:59.4]} 23. Qd3 {[%clk 0:02:02]} 23... g6
{[%clk 0:01:56.7]} 24. Rd8+ {[%clk 0:01:58.5]} 24... Kg7 {[%clk 0:01:56.3]} 25.
Qd6 {[%clk 0:01:59.1]} 1-0

[Event "*** SCC Grand Prix: Titled Tuesday Blitz"]
[Site "Chess.com"]
[Date "2020.07.07"]
[Round "4"]
[White "vovachesss"]
[Black "Harsha_Bharathakoti"]
[Result "1-0"]
[WhiteElo "2571"]
[BlackElo "2789"]
[TimeControl "180+1"]
[EndTime "10:36:19 PDT"]
[Termination "vovachesss won by resignation"]

1. d4 {[%clk 0:03:00.9]} 1... d5 {[%clk 0:02:53.6]} 2. Nc3 {[%clk 0:03:00.8]}
2... Nf6 {[%clk 0:02:53.5]} 3. Bf4 {[%clk 0:03:00.9]} 3... e6 {[%clk 0:02:53.6]}
4. e3 {[%clk 0:03:00.8]} 4... a6 {[%clk 0:02:54.3]} 5. Nf3 {[%clk 0:03:00.4]}
5... c5 {[%clk 0:02:54.7]} 6. dxc5 {[%clk 0:02:56.9]} 6... Bxc5 {[%clk
0:02:54.5]} 7. Bd3 {[%clk 0:02:57.8]} 7... Nc6 {[%clk 0:02:53.9]} 8. O-O {[%clk
0:02:57.6]} 8... O-O {[%clk 0:02:53.5]} 9. e4 {[%clk 0:02:58.2]} 9... d4 {[%clk
0:02:53.8]} 10. Ne2 {[%clk 0:02:58]} 10... Nh5 {[%clk 0:02:39.6]} 11. e5 {[%clk
0:02:52.5]} 11... Nxf4 {[%clk 0:02:36.8]} 12. Nxf4 {[%clk 0:02:52.6]} 12... b5
{[%clk 0:02:13.3]} 13. Qe2 {[%clk 0:02:31.6]} 13... Bb7 {[%clk 0:02:13.3]} 14.
Qe4 {[%clk 0:02:29.4]} 14... g6 {[%clk 0:02:11.6]} 15. Nh5 {[%clk 0:01:57]}
15... Be7 {[%clk 0:02:03.5]} 16. Qf4 {[%clk 0:01:41.7]} 16... Nb4 {[%clk
0:01:40.2]} 17. Qh6 {[%clk 0:01:38]} 1-0

[Event "*** SCC Grand Prix: Titled Tuesday Blitz"]
[Site "Chess.com"]
[Date "2020.07.07"]
[Round "4"]
[White "Kotofeyca"]
[Black "Jungle_Jaguar"]
[Result "0-1"]
[WhiteElo "2347"]
[BlackElo "2652"]
[TimeControl "180+1"]
[EndTime "10:36:20 PDT"]
[Termination "Jungle_Jaguar won by checkmate"]

1. d4 {[%clk 0:03:00.9]} 1... Nf6 {[%clk 0:02:59.7]} 2. c4 {[%clk 0:03:00.3]}
2... e6 {[%clk 0:02:59.9]} 3. Nf3 {[%clk 0:02:59.9]} 3... d5 {[%clk 0:02:59.9]}
4. Nc3 {[%clk 0:02:59.6]} 4... c6 {[%clk 0:03:00.5]} 5. cxd5 {[%clk 0:02:59.7]}
5... exd5 {[%clk 0:02:56.3]} 6. Bg5 {[%clk 0:02:59.5]} 6... Bb4 {[%clk
0:02:53.6]} 7. Qc2 {[%clk 0:02:59.2]} 7... Qa5 {[%clk 0:02:52.7]} 8. Bxf6 {[%clk
0:02:58.8]} 8... gxf6 {[%clk 0:02:51.8]} 9. e3 {[%clk 0:02:58.9]} 9... Bg4
{[%clk 0:02:46.6]} 10. Bd3 {[%clk 0:02:53]} 10... Nd7 {[%clk 0:02:45.8]} 11. O-O
{[%clk 0:02:36.2]} 11... Bxf3 {[%clk 0:02:43.5]} 12. gxf3 {[%clk 0:02:35.8]}
12... O-O-O {[%clk 0:02:42.6]} 13. a3 {[%clk 0:02:25.3]} 13... Bd6 {[%clk
0:02:39.9]} 14. b4 {[%clk 0:02:21.9]} 14... Qc7 {[%clk 0:02:39.1]} 15. f4 {[%clk
0:02:20.2]} 15... h5 {[%clk 0:02:35.3]} 16. Kh1 {[%clk 0:02:19.4]} 16... h4
{[%clk 0:02:34.5]} 17. b5 {[%clk 0:02:14]} 17... h3 {[%clk 0:02:33.5]} 18. bxc6
{[%clk 0:02:12.8]} 18... bxc6 {[%clk 0:02:32.6]} 19. Rab1 {[%clk 0:02:05]} 19...
Nb6 {[%clk 0:02:31.8]} 20. a4 {[%clk 0:01:56.9]} 20... Rdg8 {[%clk 0:02:29.5]}
21. a5 {[%clk 0:01:50]} 21... Nc4 {[%clk 0:02:26.4]} 22. Bxc4 {[%clk 0:01:46.8]}
22... dxc4 {[%clk 0:02:27.3]} 23. Ne4 {[%clk 0:01:42.2]} 23... Bxf4 {[%clk
0:02:27.1]} 24. exf4 {[%clk 0:01:22.5]} 24... Qxf4 {[%clk 0:02:28]} 25. f3
{[%clk 0:01:21.7]} 25... Rg2 {[%clk 0:02:24.5]} 26. Rf2 {[%clk 0:01:21.7]} 26...
Qxh2# {[%clk 0:02:22.8]} 0-1